fUSD/lending_fUSD_20241230
["ID","MTS","AMOUNT","RATE_DAILY","PERIOD"]
[347186872,1735554672256,-743.64,0.00014794,2]
[347186873,1735554672266,-549.69,0.00014794,2]
[347186874,1735554672275,-500.0,0.00014794,2]
[347186875,1735554672285,-500.0,0.00014794,2]
[347186876,1735554672294,-500.0,0.00014794,2]
[347186877,1735554672303,-1100.37,0.00014794,2]
[347186878,1735554672313,-648.92,0.00014794,2]
[347186879,1735554672322,-500.0,0.00014794,2]
[347186880,1735554672331,-500.0,0.00014794,2]
[347186881,1735554672340,-516.03,0.00014794,2]
[347186882,1735554672350,-521.87,0.00014794,2]
[347186883,1735554672359,-500.0,0.00014794,2]
[347186884,1735554672368,-609.91,0.00014794,2]
[347186885,1735554672377,-500.0,0.00014794,2]
[347186886,1735554672387,-500.0,0.00014794,2]
[347186887,1735554672396,-607.88075317,0.00014794,2]
[347186888,1735554672406,-500.0,0.00014794,2]
[347186889,1735554672416,-500.0,0.00014794,2]
[347186890,1735554672425,-500.0,0.00014794,2]
[347186891,1735554672435,-500.0,0.00014794,2]
[347186892,1735554672444,-500.0,0.00014794,2]
[347186893,1735554672454,-759.77,0.00014794,2]
[347186894,1735554672463,-1148.51,0.00014794,2]
[347186895,1735554672474,-500.0,0.00014794,2]
[347186896,1735554672483,-500.0,0.00014794,2]
[347186897,1735554672493,-500.0,0.00014794,2]
[347186898,1735554672502,-500.0,0.00014794,2]
[347186899,1735554672512,-500.0,0.00014794,2]
[347186900,1735554672521,-500.0,0.00014794,2]
[347186901,1735554672530,-921.9851997,0.00014794,2]
[347186902,1735554673253,-31.2848003,0.00014794,2]
[347186903,1735554673263,-500.0,0.00014794,2]
[347186904,1735554673272,-783.73,0.00014794,2]
[347186905,1735554673282,-314.42466073,0.00014794,2]
[347186906,1735554673291,-688.92,0.00014794,2]
[347186907,1735554673301,-500.0,0.00014794,2]
[347186908,1735554673310,-500.0,0.00014794,2]
[347186909,1735554673320,-500.0,0.00014794,2]
[347186910,1735554673330,-838.01,0.00014794,2]
[347186911,1735554673339,-595.21,0.00014794,2]
[347186912,1735554673349,-1036.02,0.00014794,2]
[347186913,1735554673358,-500.0,0.00014794,2]
[347186914,1735554673367,-774.44,0.00014794,2]
[347186915,1735554673376,-549.14,0.00014794,2]
[347186916,1735554673386,-500.0,0.00014794,2]
[347186917,1735554673396,-500.0,0.00014794,2]
[347186918,1735554673407,-500.0,0.00014794,2]
[347186919,1735554673416,-243.21170575,0.00014794,2]
[347186920,1735554673425,-883.34,0.00014794,2]
[347186921,1735554673435,-500.0,0.00014794,2]
[347186922,1735554673445,-500.0,0.00014794,2]
[347186923,1735554673455,-500.0,0.00014794,2]
[347186924,1735554673464,-500.0,0.00014794,2]
[347186925,1735554673474,-500.0,0.00014794,2]
[347186926,1735554673483,-515.37,0.00014794,2]
[347186927,1735554673493,-500.0,0.00014794,2]
[347186928,1735554673502,-500.0,0.00014794,2]
[347186929,1735554673511,-500.0,0.00014794,2]
[347186930,1735554673520,-500.0,0.00014794,2]
[347186931,1735554673529,-500.0,0.00014794,2]
[347186932,1735554673539,-460.92623376,0.00014794,2]
[347186933,1735554673549,-1202.92,0.00014794,2]
[347186934,1735554673558,-500.0,0.00014794,2]
[347186935,1735554673568,-500.0,0.00014794,2]
[347186936,1735554673577,-500.0,0.00014794,2]
[347186937,1735554673586,-500.0,0.00014794,2]
[347186938,1735554673595,-510.83,0.00014794,2]
[347186939,1735554673605,-500.0,0.00014794,2]
[347186940,1735554673614,-500.0,0.00014794,2]
[347186941,1735554673623,-500.0,0.00014794,2]
[347186942,1735554673632,-500.0,0.00014794,2]
[347186943,1735554673642,-500.0,0.00014794,2]
[347186944,1735554673651,-500.0,0.00014794,2]
[347186945,1735554673660,-500.0,0.00014794,2]
[347186946,1735554673670,-500.0,0.00014794,2]
[347186947,1735554673679,-500.0,0.00014794,2]
[347186948,1735554673689,-236.67164947,0.00014794,2]
[347186949,1735554673710,-332.55073152,0.00014794,2]
[347186950,1735554673742,-427.46761901,0.00014794,2]
[347186951,1735554673752,-612.6,0.00014794,2]
[347186952,1735554673762,-500.0,0.00014794,2]
[347186953,1735554673771,-500.0,0.00014794,2]
[347186954,1735554673781,-500.0,0.00014794,2]
[347186955,1735554673791,-500.0,0.00014794,2]
[347186956,1735554673800,-336.03384679,0.00014794,2]
[347186957,1735554673812,-163.96615321,0.00014794,2]
[347186958,1735554673821,-500.0,0.00014794,2]
[347186959,1735554673832,-982.97,0.00014794,2]
[347186960,1735554673842,-1360.64,0.00014794,2]
[347186961,1735554673852,-504.81,0.00014794,2]
[347186962,1735554673861,-974.37,0.00014794,2]
[347186963,1735554673871,-500.52,0.00014794,2]
[347186964,1735554673881,-22.52525879,0.00014794,2]
[347186965,1735554673893,-885.01474121,0.00014794,2]
[347186966,1735554673903,-521.19,0.00014794,2]
[347186967,1735554673912,-500.0,0.00014794,2]
[347186968,1735554673922,-500.0,0.00014794,2]
[347186969,1735554673931,-500.0,0.00014794,2]
[347186970,1735554673941,-500.0,0.00014794,2]
[347186971,1735554673951,-1618.68,0.00014794,2]
[347186972,1735554673960,-500.0,0.00014794,2]
[347186973,1735554673970,-500.0,0.00014794,2]
[347186974,1735554673979,-1214.94,0.00014794,2]
[347186975,1735554673989,-500.30566949,0.00014794,2]
[347186976,1735554673999,-682.33,0.00014794,2]
[347186977,1735554674008,-930.73,0.00014794,2]
[347186978,1735554674018,-500.0,0.00014794,2]
[347186979,1735554674028,-500.0,0.00014794,2]
[347186980,1735554674037,-2615.11,0.00014794,2]
[347186981,1735554674046,-631.10325579,0.00014794,2]
[347186982,1735554674056,-1343.34,0.00014794,2]
[347186983,1735554674065,-500.0,0.00014794,2]
[347186984,1735554674074,-500.0,0.00014794,2]
[347186985,1735554674084,-1605.7,0.00014794,2]
[347186986,1735554674093,-500.0,0.00014794,2]
[347186987,1735554674106,-151.55633671,0.00014794,2]
[347186988,1735554674767,-500.0,0.00013698,2]
[347186989,1735554674777,-500.0,0.00013972,2]
[347186990,1735554674787,-500.0,0.00014246,2]
[347186991,1735554674797,-625.82,0.0001452,2]
[347186992,1735554674806,-150.0,0.00014572,2]
[347186993,1735554674816,-1195.85366329,0.00014794,2]
[347186994,1735554674826,-740.98,0.00014794,2]
[347186995,1735554674836,-500.0,0.00014794,2]
[347186996,1735554674845,-1010.13,0.00014794,2]
[347186997,1735554674855,-500.0,0.00014794,2]
[347186998,1735554674864,-500.0,0.00014794,2]
[347186999,1735554674873,-732.49,0.00014794,2]
[347187000,1735554674883,-500.0,0.00014794,2]
[347187001,1735554674892,-228.35383967,0.00014794,2]
[347187002,1735554674901,-500.0,0.00014794,2]
[347187003,1735554674911,-500.0,0.00014794,2]
[347187004,1735554674920,-738.14,0.00014794,2]
[347187005,1735554674930,-500.0,0.00014794,2]
[347187006,1735554674939,-287.92438154,0.00014794,2]
[347187007,1735554674948,-709.32,0.00014794,2]
[347187008,1735554674958,-1055.18,0.00014794,2]
[347187009,1735554674967,-1396.55,0.00014794,2]
[347187010,1735554674980,-2517.56,0.00014794,2]
[347187011,1735554674990,-4031.59,0.00014794,2]
[347187012,1735554675000,-500.0,0.00014794,2]
[347187013,1735554675011,-1255.43,0.00014794,2]
[347187014,1735554675021,-1693.33,0.00014794,2]
[347187015,1735554675031,-1279.84,0.00014794,2]
[347187016,1735554675042,-647.45,0.00014794,2]
[347187017,1735554675051,-577.79,0.00014794,2]
[347187018,1735554675062,-1741.51,0.00014794,2]
[347187019,1735554675071,-500.0,0.00014794,2]
[347187020,1735554675081,-942.55,0.00014794,2]
[347187021,1735554675090,-899.5,0.00014794,2]
[347187022,1735554675102,-500.0,0.00014794,2]
[347187023,1735554675113,-500.0,0.00014794,2]
[347187024,1735554675123,-500.0,0.00014794,2]
[347187025,1735554675132,-971.2,0.00014794,2]
[347187026,1735554675141,-852.09,0.00014794,2]
[347187027,1735554675151,-500.0,0.00014794,2]
[347187028,1735554675161,-464.77192931,0.00014794,2]
[347187029,1735554675170,-526.98,0.00014794,2]
[347187030,1735554675182,-1602.37,0.00014794,2]
[347187031,1735554675191,-500.0,0.00014794,2]
[347187032,1735554675200,-500.0,0.00014794,2]
[347187033,1735554675210,-1168.41,0.00014794,2]
[347187034,1735554675219,-718.04,0.00014794,2]
[347187035,1735554675231,-520.46,0.00014794,2]
[347187036,1735554675240,-500.0,0.00014794,2]
[347187037,1735554675249,-500.0,0.00014794,2]
[347187038,1735554675259,-500.0,0.00014794,2]
[347187039,1735554675268,-500.0,0.00014794,2]
[347187040,1735554675278,-500.97,0.00014794,2]
[347187041,1735554675287,-1610.98,0.00014794,2]
[347187042,1735554675297,-522.32,0.00014794,2]
[347187043,1735554675307,-500.0,0.00014794,2]
[347187044,1735554675317,-829.69,0.00014794,2]
[347187045,1735554675326,-500.0,0.00014794,2]
[347187046,1735554675336,-592.14,0.00014794,2]
[347187047,1735554675345,-500.0,0.00014794,2]
[347187048,1735554675354,-285.05857409,0.00014794,2]
[347187049,1735554675368,-172.48129606,0.00014794,2]
[347187050,1735554675378,-743.74,0.00014794,2]
[347187051,1735554675387,-822.9,0.00014794,2]
[347187052,1735554675396,-480.87591792,0.00014794,2]
[347187053,1735554675408,-500.0,0.00014794,2]
[347187054,1735554675417,-500.0,0.00014794,2]
[347187055,1735554675426,-500.0,0.00014794,2]
[347187056,1735554675436,-961.28,0.00014794,2]
[347187057,1735554675445,-500.0,0.00014794,2]
[347187058,1735554675454,-1300.51,0.00014794,2]
[347187059,1735554675463,-1306.13,0.00014794,2]
[347187060,1735554675474,-1211.16,0.00014794,2]
[347187061,1735554675484,-500.0,0.00014794,2]
[347187062,1735554675494,-500.0,0.00014794,2]
[347187063,1735554675503,-644.72,0.00014794,2]
[347187064,1735554675513,-507.58,0.00014794,2]
[347187065,1735554675522,-500.0,0.00014794,2]
[347187066,1735554675531,-1716.07,0.00014794,2]
[347187067,1735554675541,-500.0,0.00014794,2]
[347187068,1735554675550,-685.33,0.00014794,2]
[347187069,1735554675559,-500.0,0.00014794,2]
[347187070,1735554675568,-500.0,0.00014794,2]
[347187071,1735554675578,-1140.3,0.00014794,2]
[347187072,1735554675588,-1582.78,0.00014794,2]
[347187073,1735554675598,-500.0,0.00014794,2]
[347187074,1735554675607,-1499.25,0.00014794,2]
[347187075,1735554675620,-1527.24,0.00014794,2]
[347187076,1735554675639,-500.0,0.00014794,2]
[347187077,1735554675655,-1626.34,0.00014794,2]
[347187078,1735554675674,-500.0,0.00014794,2]
[347187079,1735554675691,-799.47,0.00014794,2]
[347187080,1735554675708,-775.88,0.00014794,2]
[347187081,1735554675727,-500.0,0.00014794,2]
[347187082,1735554675745,-500.0,0.00014794,2]
[347187083,1735554675764,-500.0,0.00014794,2]
[347187084,1735554675781,-936.82,0.00014794,2]
[347187085,1735554675799,-789.36,0.00014794,2]
[347187086,1735554675814,-1745.68,0.00014794,2]
[347187087,1735554675832,-747.79,0.00014794,2]
[347187088,1735554675845,-500.0,0.00014794,2]
[347187089,1735554675863,-500.0,0.00014794,2]
[347187090,1735554675876,-276.56367542,0.00014794,2]
[347187091,1735554676063,-500.0,0.00013698,2]
[347187092,1735554676078,-331.78632458,0.00014794,2]
[347187093,1735554676093,-500.0,0.00014794,2]
[347187094,1735554676111,-500.0,0.00014794,2]
[347187095,1735554676126,-500.0,0.00014794,2]
[347187096,1735554676141,-539.77,0.00014794,2]
[347187097,1735554676158,-271.24367546,0.00014794,2]
[347187098,1735554676177,-228.75632454,0.00014794,2]
[347187099,1735554676192,-745.85,0.00014794,2]
[347187100,1735554676207,-782.89,0.00014794,2]
[347187101,1735554676225,-881.97,0.00014794,2]
[347187102,1735554676239,-500.0,0.00014794,2]
[347187103,1735554676253,-570.91,0.00014794,2]
[347187104,1735554676268,-380.54069077,0.00014794,2]
[347187105,1735554676288,-119.45930923,0.00014794,2]
[347187106,1735554676303,-500.0,0.00014794,2]
[347187107,1735554676318,-222.74521379,0.00014794,2]
[347187108,1735554676336,-599.25478621,0.00014794,2]
[347187109,1735554676351,-270.93265699,0.00014794,2]
[347187110,1735554676370,-762.45734301,0.00014794,2]
[347187111,1735554676385,-854.9,0.00014794,2]
[347187112,1735554676400,-703.8,0.00014794,2]
[347187113,1735554676415,-500.0,0.00014794,2]
[347187114,1735554676430,-843.64,0.00014794,2]
[347187115,1735554676444,-500.0,0.00014794,2]
[347187116,1735554676459,-500.0,0.00014794,2]
[347187117,1735554676475,-1144.08825518,0.00014794,2]
[347187118,1735554676493,-343.48470714,0.00014794,2]
[347187119,1735554676511,-172.72703768,0.00014794,2]
[347187120,1735554676527,-167.88179033,0.00014794,2]
[347187121,1735554676553,-895.55820967,0.00014794,2]
[347187122,1735554676568,-543.78,0.00014794,2]
[347187123,1735554676583,-187.71590238,0.00014794,2]
[347187124,1735554676633,-500.0,0.00013972,2]
[347187125,1735554676650,-514.93409762,0.00014794,2]
[347187126,1735554676659,-500.0,0.00014794,2]
[347187127,1735554676670,-652.4,0.00014794,2]
[347187128,1735554676680,-1187.1,0.00014794,2]
[347187129,1735554676689,-505.09,0.00014794,2]
[347187130,1735554676699,-513.72340723,0.00014794,2]
[347187131,1735554676711,-315.63659277,0.00014794,2]
[347187132,1735554676721,-569.36340721,0.00014794,2]
[347187133,1735554676738,-6.49659279,0.00014794,2]
[347187134,1735554676748,-500.0,0.00014794,2]
[347187135,1735554676758,-500.0,0.00014794,2]
[347187136,1735554676767,-500.0,0.00014794,2]
[347187137,1735554676777,-670.85202688,0.00014794,2]
[347187138,1735554677964,-561.17,0.00013698,2]
[347187139,1735554677990,-1007.71,0.00013698,2]
[347187140,1735554678000,-500.0,0.00013698,2]
[347187141,1735554678009,-500.0,0.00013698,2]
[347187142,1735554678019,-502.31889845,0.00013698,2]
[347187143,1735554678029,-500.0,0.00013698,2]
[347187144,1735554678039,-500.0,0.00013698,2]
[347187145,1735554678048,-1568.88,0.00013972,2]
[347187146,1735554678058,-500.0,0.00013972,2]
[347187147,1735554678068,-500.0,0.00013972,2]
[347187148,1735554678078,-500.0,0.00013972,2]
[347187149,1735554678088,-500.0,0.00014246,2]
[347187150,1735554678098,-500.0,0.00014246,2]
[347187151,1735554678112,-643.51618476,0.00014246,2]
[347187152,1735554699096,-925.36381524,0.00014246,2]
[347187153,1735554699108,-500.0,0.00014246,2]
[347187154,1735554699117,-495.75,0.0001452,2]
[347187155,1735554699126,-424.2,0.0001452,2]
[347187156,1735554699135,-500.0,0.0001452,2]
[347187157,1735554699144,-236.07797312,0.00014794,2]
[347187158,1735554699154,-624.19,0.00014794,2]
[347187159,1735554699163,-1156.63,0.00014794,2]
[347187160,1735554699173,-713.62,0.00014794,2]
[347187161,1735554699182,-614.22,0.00014794,2]
[347187162,1735554699191,-257.8691437,0.00014794,2]
[347187163,1735554699200,-537.93,0.00014794,2]
[347187164,1735554699209,-1282.53,0.00014794,2]
[347187165,1735554699219,-1876.89,0.00014794,2]
[347187166,1735554699228,-789.0,0.00014794,2]
[347187167,1735554699237,-946.81,0.00014794,2]
[347187168,1735554699246,-1388.83,0.00014794,2]
[347187169,1735554699255,-1179.27,0.00014794,2]
[347187170,1735554699264,-1973.96,0.00014794,2]
[347187171,1735554699273,-1045.87,0.00014794,2]
[347187172,1735554699282,-1459.4,0.00014794,2]
[347187173,1735554699291,-740.94,0.00014794,2]
[347187174,1735554699300,-1041.91,0.00014794,2]
[347187175,1735554699309,-994.29,0.00014794,2]
[347187176,1735554699319,-645.11,0.00014794,2]
[347187177,1735554699328,-500.0,0.00014794,2]
[347187178,1735554699337,-1167.76,0.00014794,2]
[347187179,1735554699346,-528.4,0.00014794,2]
[347187180,1735554699355,-500.0,0.00014794,2]
[347187181,1735554699365,-500.0,0.00014794,2]
[347187182,1735554699375,-507.89735815,0.00014794,2]
[347187183,1735554699384,-1770.26,0.00014794,2]
[347187184,1735554699394,-1922.14,0.00014794,2]
[347187185,1735554699403,-500.0,0.00014794,2]
[347187186,1735554699413,-2056.26,0.00014794,2]
[347187187,1735554699422,-500.0,0.00014794,2]
[347187188,1735554699432,-2616.4,0.00014794,2]
[347187189,1735554699441,-500.0,0.00014794,2]
[347187190,1735554699450,-830.19,0.00014794,2]
[347187191,1735554699459,-563.78,0.00014794,2]
[347187192,1735554699469,-933.75,0.00014794,2]
[347187193,1735554699478,-500.0,0.00014794,2]
[347187194,1735554699488,-1862.34,0.00014794,2]
[347187195,1735554699498,-500.0,0.00014794,2]
[347187196,1735554699508,-4223.89,0.00014794,2]
[347187197,1735554699517,-446.35621423,0.00014794,2]
[347187198,1735554699526,-500.0,0.00014794,2]
[347187199,1735554699536,-500.0,0.00014794,2]
[347187200,1735554699545,-1896.09,0.00014794,2]
[347187201,1735554699554,-1233.39,0.00014794,2]
[347187202,1735554699563,-500.0,0.00014794,2]
[347187203,1735554699573,-1415.62,0.00014794,2]
[347187204,1735554699582,-500.0,0.00014794,2]
[347187205,1735554699592,-2442.05,0.00014794,2]
[347187206,1735554699601,-3114.35,0.00014794,2]
[347187207,1735554699610,-848.86,0.00014794,2]
[347187208,1735554699620,-836.45,0.00014794,2]
[347187209,1735554699629,-1119.39,0.00014794,2]
[347187210,1735554699638,-500.0,0.00014794,2]
[347187211,1735554699647,-922.12,0.00014794,2]
[347187212,1735554699656,-163.006465,0.00014794,2]
[347187213,1735554699665,-1004.42,0.00014794,2]
[347187214,1735554699675,-500.0,0.00014794,2]
[347187215,1735554699684,-1421.43,0.00014794,2]
[347187216,1735554699693,-642.54,0.00014794,2]
[347187217,1735554699703,-1590.22,0.00014794,2]
[347187218,1735554699713,-503.51361489,0.00014794,2]
[347187219,1735554699722,-5206.57,0.00014794,2]
[347187220,1735554699732,-1027.59,0.00014794,2]
[347187221,1735554699743,-984.07,0.00014794,2]
[347187222,1735554699753,-1269.5,0.00014794,2]
[347187223,1735554699763,-500.0,0.00014794,2]
[347187224,1735554699772,-747.2,0.00014794,2]
[347187225,1735554699781,-500.0,0.00014794,2]
[347187226,1735554699790,-895.8,0.00014794,2]
[347187227,1735554699799,-1186.15,0.00014794,2]
[347187228,1735554699809,-1748.97,0.00014794,2]
[347187229,1735554699818,-2837.22,0.00014794,2]
[347187230,1735554699828,-2119.17,0.00014794,2]
[347187231,1735554699837,-1401.43,0.00014794,2]
[347187232,1735554699846,-500.0,0.00014794,2]
[347187233,1735554699855,-500.0,0.00014794,2]
[347187234,1735554699864,-804.5,0.00014794,2]
[347187235,1735554699874,-2511.83,0.00014794,2]
[347187236,1735554699883,-895.97,0.00014794,2]
[347187237,1735554699893,-519.41,0.00014794,2]
[347187238,1735554699902,-2223.57,0.00014794,2]
[347187239,1735554699912,-3557.82,0.00014794,2]
[347187240,1735554699922,-500.0,0.00014794,2]
[347187241,1735554699932,-500.0,0.00014794,2]
[347187242,1735554699942,-1235.09,0.00014794,2]
[347187243,1735554699952,-500.0,0.00014794,2]
[347187244,1735554699962,-961.58,0.00014794,2]
[347187245,1735554699971,-500.0,0.00014794,2]
[347187246,1735554699980,-789.39,0.00014794,2]
[347187247,1735554699991,-1220.94,0.00014794,2]
[347187248,1735554700001,-700.0,0.00014794,2]
[347187249,1735554700011,-1334.12,0.00014794,2]
[347187250,1735554700020,-15520.84,0.00014794,2]
[347187251,1735554700030,-1799.96,0.00014794,2]
[347187252,1735554700039,-1420.5,0.00014794,2]
[347187253,1735554700049,-948.01,0.00014794,2]
[347187254,1735554700058,-3118.65,0.00014794,2]
[347187255,1735554700067,-655.39,0.00014794,2]
[347187256,1735554700077,-500.0,0.00014794,2]
[347187257,1735554700086,-1481.38,0.00014794,2]
[347187258,1735554700095,-500.0,0.00014794,2]
[347187259,1735554700108,-695.05,0.00014794,2]
[347187260,1735554700118,-1130.97,0.00014794,2]
[347187261,1735554700127,-500.0,0.00014794,2]
[347187262,1735554700137,-964.77,0.00014794,2]
[347187263,1735554700147,-2743.83,0.00014794,2]
[347187264,1735554700156,-995.84,0.00014794,2]
[347187265,1735554700166,-500.0,0.00014794,2]
[347187266,1735554700175,-1294.06,0.00014794,2]
[347187267,1735554700185,-256.600673,0.00014794,2]
[347187268,1735554700194,-1717.36,0.00014794,2]
[347187269,1735554700203,-504.19,0.00014794,2]
[347187270,1735554700213,-1429.45,0.00014794,2]
[347187271,1735554700222,-500.0,0.00014794,2]
[347187272,1735554700232,-500.0,0.00014794,2]
[347187273,1735554700242,-1021.02,0.00014794,2]
[347187274,1735554700251,-503.41761449,0.00014794,2]
[347187275,1735554700261,-3809.03,0.00014794,2]
[347187276,1735554700270,-500.0,0.00014794,2]
[347187277,1735554700279,-2701.33,0.00014794,2]
[347187278,1735554700289,-525.25256088,0.00014794,2]
[347187279,1735554700298,-500.0,0.00014794,2]
[347187280,1735554700308,-2078.6,0.00014794,2]
[347187281,1735554700318,-3469.31,0.00014794,2]
[347187282,1735554700328,-788.38,0.00014794,2]
[347187283,1735554700337,-777.08,0.00014794,2]
[347187284,1735554700346,-529.45,0.00014794,2]
[347187285,1735554700356,-500.0,0.00014794,2]
[347187286,1735554700365,-999.37,0.00014794,2]
[347187287,1735554700374,-3390.93,0.00014794,2]
[347187288,1735554700384,-500.0,0.00014794,2]
[347187289,1735554700393,-503.24652458,0.00014794,2]
[347187290,1735554700402,-838.45,0.00014794,2]
[347187291,1735554700412,-500.0,0.00014794,2]
[347187292,1735554700421,-500.0,0.00014794,2]
[347187293,1735554700431,-565.11,0.00014794,2]
[347187294,1735554700440,-3116.51,0.00014794,2]
[347187295,1735554700450,-500.0,0.00014794,2]
[347187296,1735554700459,-824.29,0.00014794,2]
[347187297,1735554700469,-2085.66,0.00014794,2]
[347187298,1735554700478,-1158.25,0.00014794,2]
[347187299,1735554700489,-555.14,0.00014794,2]
[347187300,1735554700498,-1664.6,0.00014794,2]
[347187301,1735554700508,-826.92,0.00014794,2]
[347187302,1735554700517,-7960.63,0.00014794,2]
[347187303,1735554700526,-4913.88,0.00014794,2]
[347187304,1735554700536,-3550.08,0.00014794,2]
[347187305,1735554700545,-1277.48,0.00014794,2]
[347187306,1735554700555,-4923.98,0.00014794,2]
[347187307,1735554700563,-1076.9,0.00014794,2]
[347187308,1735554700573,-1945.05,0.00014794,2]
[347187309,1735554700582,-500.0,0.00014794,2]
[347187310,1735554700592,-2958.04,0.00014794,2]
[347187311,1735554700601,-1526.0,0.00014794,2]
[347187312,1735554700610,-867.36,0.00014794,2]
[347187313,1735554700620,-1785.33,0.00014794,2]
[347187314,1735554700629,-873.64,0.00014794,2]
[347187315,1735554700639,-902.97,0.00014794,2]
[347187316,1735554700648,-1948.24,0.00014794,2]
[347187317,1735554700657,-500.0,0.00014794,2]
[347187318,1735554700666,-838.43,0.00014794,2]
[347187319,1735554700675,-3634.37,0.00014794,2]
[347187320,1735554700684,-1262.2,0.00014794,2]
[347187321,1735554700694,-4406.04,0.00014794,2]
[347187322,1735554700703,-2536.67,0.00014794,2]
[347187323,1735554700713,-1619.44,0.00014794,2]
[347187324,1735554700723,-3415.04,0.00014794,2]
[347187325,1735554700732,-500.0,0.00014794,2]
[347187326,1735554700743,-1621.07,0.00014794,2]
[347187327,1735554700752,-500.0,0.00014794,2]
[347187328,1735554700762,-244.11712873,0.00014794,2]
[347187329,1735554700772,-24680.01,0.00014794,2]
[347187330,1735554700781,-261.83422742,0.00014794,2]
[347187331,1735554700791,-191.848991,0.00014794,2]
[347187332,1735554700801,-1329.52,0.00014794,2]
[347187333,1735554700811,-21241.19,0.00014794,2]
[347187334,1735554700821,-8051.77,0.00014794,2]
[347187335,1735554700831,-641.59273955,0.00014794,2]
[347187336,1735554700841,-3369.5,0.00014794,2]
[347187337,1735554700851,-818.37,0.00014794,2]
[347187338,1735554700860,-900.18,0.00014794,2]
[347187339,1735554700869,-2962.92,0.00014794,2]
[347187340,1735554700879,-2005.67,0.00014794,2]
[347187341,1735554700888,-922.91,0.00014794,2]
[347187342,1735554700897,-7841.0,0.00014794,2]
[347187343,1735554700906,-211.72561288,0.00014794,2]
[347187344,1735554700916,-500.0,0.00014794,2]
[347187345,1735554700925,-4683.43,0.00014794,2]
[347187346,1735554700935,-1725.02,0.00014794,2]
[347187347,1735554700944,-851.58,0.00014794,2]
[347187348,1735554700954,-1737.99,0.00014794,2]
[347187349,1735554700963,-1371.79,0.00014794,2]
[347187350,1735554700972,-908.23,0.00014794,2]
[347187351,1735554700981,-1034.9,0.00014794,2]
[347187352,1735554700992,-2087.39,0.00014794,2]
[347187353,1735554701003,-500.0,0.00014794,2]
[347187354,1735554701013,-1354.54,0.00014794,2]
[347187355,1735554701023,-506.05569275,0.00014794,2]
[347187356,1735554701032,-500.0,0.00014794,2]
[347187357,1735554701042,-5139.4,0.00014794,2]
[347187358,1735554701052,-1765.84,0.00014794,2]
[347187359,1735554701061,-3255.81,0.00014794,2]
[347187360,1735554701070,-500.0,0.00014794,2]
[347187361,1735554701080,-500.0,0.00014794,2]
[347187362,1735554701090,-1725.59,0.00014794,2]
[347187363,1735554701100,-3980.02,0.00014794,2]
[347187364,1735554701112,-500.0,0.00014794,2]
[347187365,1735554701122,-2612.63,0.00014794,2]
[347187366,1735554701131,-1895.75,0.00014794,2]
[347187367,1735554701141,-879.99,0.00014794,2]
[347187368,1735554701151,-659.37,0.00014794,2]
[347187369,1735554701160,-500.0,0.00014794,2]
[347187370,1735554701169,-1879.64,0.00014794,2]
[347187371,1735554701179,-594.06,0.00014794,2]